[Event "December 12 Late 2023"]
[Site "https://www.chess.com"]
[Date "2023.12.12"]
[Round "1"]
[White "Svane, Frederik"]
[Black "Kovalevsky, Stanislav"]
[Result "1-0"]
[Board "21"]
[TimeControl "180+1"]
[WhiteFideId "12923044"]
[BlackFideId "13508598"]
[WhiteElo "2980"]
[BlackElo "2487"]
[WhiteTeam "GER"]
[BlackTeam "FID"]
[WhiteClock "0:01:02"]
[BlackClock "0:00:10"]

1. c4 {[%clk 0:03:00]}  c6 {[%clk 0:02:49]} 2. e4 {[%clk 0:02:57]}  d5 {[%clk 0:02:45]} 3. exd5 {[%clk 0:02:58]}  cxd5 {[%clk 0:02:46]} 4. cxd5 {[%clk 0:02:58]}  Nf6 {[%clk 0:02:47]} 5. Nc3 {[%clk 0:02:57]}  Nxd5 {[%clk 0:02:47]} 6. Nf3 {[%clk 0:02:55]}  Nc6 {[%clk 0:02:47]} 7. Bb5 {[%clk 0:02:55]}  Bg4 {[%clk 0:02:45]} 8. Qa4 {[%clk 0:02:48]}  Nxc3 {[%clk 0:02:22]} 9. dxc3 {[%clk 0:02:48]}  Bxf3 {[%clk 0:02:19]} 10. gxf3 {[%clk 0:02:49]}  Qd5 {[%clk 0:02:06]} 11. Be2 {[%clk 0:02:32]}  e6 {[%clk 0:01:58]} 12. Qb3 {[%clk 0:02:26]}  Qxb3 {[%clk 0:01:36]} 13. axb3 {[%clk 0:02:26]}  Be7 {[%clk 0:01:32]} 14. Be3 {[%clk 0:02:26]}  a6 {[%clk 0:01:30]} 15. b4 {[%clk 0:02:26]}  Rd8 {[%clk 0:01:28]} 16. O-O {[%clk 0:02:07]}  O-O {[%clk 0:01:28]} 17. Rfd1 {[%clk 0:02:08]}  Bf6 {[%clk 0:01:26]} 18. Bb6 {[%clk 0:02:06]}  Rxd1+ {[%clk 0:01:23]} 19. Rxd1 {[%clk 0:02:07]}  Bd8 {[%clk 0:01:21]} 20. Bc5 {[%clk 0:02:06]}  Re8 {[%clk 0:01:20]} 21. Rd7 {[%clk 0:02:05]}  b6 {[%clk 0:01:16]} 22. Be3 {[%clk 0:02:05]}  a5 {[%clk 0:01:15]} 23. b5 {[%clk 0:02:02]}  Ne5 {[%clk 0:01:13]} 24. Rb7 {[%clk 0:02:02]}  a4 {[%clk 0:00:52]} 25. Bxb6 {[%clk 0:01:52]}  Bxb6 {[%clk 0:00:52]} 26. Rxb6 {[%clk 0:01:53]}  Rd8 {[%clk 0:00:45]} 27. Ra6 {[%clk 0:01:37]}  g5 {[%clk 0:00:45]} 28. b6 {[%clk 0:01:26]}  Rb8 {[%clk 0:00:33]} 29. Bb5 {[%clk 0:01:18]}  Nxf3+ {[%clk 0:00:20]} 30. Kg2 {[%clk 0:01:18]}  Nh4+ {[%clk 0:00:19]} 31. Kf1 {[%clk 0:01:18]}  Nf5 {[%clk 0:00:18]} 32. Bxa4 {[%clk 0:01:13]}  Kf8 {[%clk 0:00:16]} 33. c4 {[%clk 0:01:10]}  Ke7 {[%clk 0:00:15]} 34. c5 {[%clk 0:01:11]}  Nd4 {[%clk 0:00:15]} 35. c6 {[%clk 0:01:02]}  Nxc6 {[%clk 0:00:14]} 36. Bxc6 {[%clk 0:01:03]}  Kd6 {[%clk 0:00:14]} 37. b7 {[%clk 0:01:03]}  Kc7 {[%clk 0:00:14]} 38. b4 {[%clk 0:01:02]}  Rd8 {[%clk 0:00:12]} 39. Ra8 {[%clk 0:01:01]}  Rb8 {[%clk 0:00:10]} 40. b5 {[%clk 0:01:02]}  Rxb7 {[%clk 0:00:09]} 41. Bxb7 {[%clk 0:01:02]}  Kxb7 {[%clk 0:00:10]} 42. Rf8 {[%clk 0:01:02]} 1-0

[Event "December 12 Late 2023"]
[Site "https://www.chess.com"]
[Date "2023.12.12"]
[Round "1"]
[White "Bellissimo, Joseph F."]
[Black "Khismatullin, Denis"]
[Result "0-1"]
[Board "24"]
[TimeControl "180+1"]
[WhiteFideId "2609843"]
[BlackFideId "4142578"]
[WhiteElo "2483"]
[BlackElo "2961"]
[WhiteTeam "CAN"]
[BlackTeam "RUS"]
[WhiteClock "0:00:05"]
[BlackClock "0:00:32"]

1. e4 {[%clk 0:03:00]}  c5 {[%clk 0:02:59]} 2. Nf3 {[%clk 0:02:49]}  d6 {[%clk 0:02:59]} 3. d4 {[%clk 0:02:49]}  cxd4 {[%clk 0:02:59]} 4. Qxd4 {[%clk 0:02:49]}  Nc6 {[%clk 0:02:56]} 5. Bb5 {[%clk 0:02:49]}  Bd7 {[%clk 0:02:56]} 6. Bxc6 {[%clk 0:02:50]}  Bxc6 {[%clk 0:02:55]} 7. Nc3 {[%clk 0:02:51]}  Nf6 {[%clk 0:02:54]} 8. Bg5 {[%clk 0:02:51]}  e6 {[%clk 0:02:54]} 9. O-O-O {[%clk 0:02:51]}  Be7 {[%clk 0:02:53]} 10. Kb1 {[%clk 0:02:51]}  O-O {[%clk 0:02:52]} 11. Rhe1 {[%clk 0:02:51]}  Re8 {[%clk 0:02:49]} 12. Qd2 {[%clk 0:02:51]}  h6 {[%clk 0:02:43]} 13. Bf4 {[%clk 0:02:42]}  e5 {[%clk 0:02:39]} 14. Bxh6 {[%clk 0:02:11]}  gxh6 {[%clk 0:02:37]} 15. Qxh6 {[%clk 0:02:12]}  Bf8 {[%clk 0:02:28]} 16. Qg5+ {[%clk 0:02:10]}  Bg7 {[%clk 0:02:23]} 17. Nh4 {[%clk 0:02:06]}  Nd5 {[%clk 0:02:06]} 18. Qg3 {[%clk 0:01:51]}  Nxc3+ {[%clk 0:02:04]} 19. bxc3 {[%clk 0:01:52]}  Re6 {[%clk 0:02:02]} 20. Re3 {[%clk 0:01:25]}  Rh6 {[%clk 0:01:29]} 21. Nf5 {[%clk 0:01:06]}  Rg6 {[%clk 0:01:29]} 22. Qh3 {[%clk 0:01:06]}  Bd7 {[%clk 0:01:23]} 23. Rg3 {[%clk 0:01:00]}  Bxf5 {[%clk 0:01:12]} 24. exf5 {[%clk 0:00:58]}  Rxg3 {[%clk 0:01:11]} 25. hxg3 {[%clk 0:00:53]}  e4 {[%clk 0:01:04]} 26. g4 {[%clk 0:00:40]}  Qb6+ {[%clk 0:00:57]} 27. Kc1 {[%clk 0:00:40]}  Qxf2 {[%clk 0:00:53]} 28. g5 {[%clk 0:00:16]}  Qf4+ {[%clk 0:00:51]} 29. Kb2 {[%clk 0:00:16]}  Qxg5 {[%clk 0:00:51]} 30. Rxd6 {[%clk 0:00:16]}  Re8 {[%clk 0:00:46]} 31. f6 {[%clk 0:00:09]}  Bxf6 {[%clk 0:00:44]} 32. Qd7 {[%clk 0:00:08]}  Rd8 {[%clk 0:00:40]} 33. Qc7 {[%clk 0:00:09]}  Qb5+ {[%clk 0:00:38]} 34. Kc1 {[%clk 0:00:08]}  Bg5+ {[%clk 0:00:35]} 35. Kd1 {[%clk 0:00:07]}  Qb1+ {[%clk 0:00:34]} 36. Ke2 {[%clk 0:00:07]}  Qxc2+ {[%clk 0:00:34]} 37. Kf1 {[%clk 0:00:07]}  Qc1+ {[%clk 0:00:34]} 38. Kf2 {[%clk 0:00:07]}  Qf4+ {[%clk 0:00:33]} 39. Kg1 {[%clk 0:00:05]}  Qxd6 {[%clk 0:00:32]} 0-1

[Event "December 12 Late 2023"]
[Site "https://www.chess.com"]
[Date "2023.12.12"]
[Round "1"]
[White "Jacobson, Brandon"]
[Black "Novikova, Galina"]
[Result "1-0"]
[Board "27"]
[TimeControl "180+1"]
[WhiteFideId "30901561"]
[BlackFideId "4157095"]
[WhiteElo "2918"]
[BlackElo "2476"]
[WhiteTeam "USA"]
[BlackTeam "RUS"]
[WhiteClock "0:00:45"]
[BlackClock "0:00:00"]

1. e4 {[%clk 0:03:00]}  e6 {[%clk 0:02:59]} 2. d4 {[%clk 0:03:00]}  d5 {[%clk 0:03:00]} 3. Nc3 {[%clk 0:02:57]}  Bb4 {[%clk 0:03:00]} 4. e5 {[%clk 0:02:55]}  c5 {[%clk 0:03:00]} 5. a3 {[%clk 0:02:55]}  Bxc3+ {[%clk 0:03:00]} 6. bxc3 {[%clk 0:02:56]}  Ne7 {[%clk 0:03:01]} 7. h4 {[%clk 0:02:56]}  Nbc6 {[%clk 0:02:53]} 8. h5 {[%clk 0:02:54]}  h6 {[%clk 0:02:53]} 9. Qg4 {[%clk 0:02:47]}  Kf8 {[%clk 0:02:54]} 10. Rh3 {[%clk 0:02:40]}  Qa5 {[%clk 0:02:53]} 11. Bd2 {[%clk 0:02:26]}  Qa4 {[%clk 0:02:54]} 12. Qf4 {[%clk 0:02:23]}  b6 {[%clk 0:02:21]} 13. Rf3 {[%clk 0:02:10]}  Nd8 {[%clk 0:02:19]} 14. dxc5 {[%clk 0:02:08]}  Qxf4 {[%clk 0:02:07]} 15. Rxf4 {[%clk 0:02:09]}  bxc5 {[%clk 0:02:08]} 16. Be3 {[%clk 0:02:06]}  Nb7 {[%clk 0:02:05]} 17. Ba6 {[%clk 0:01:54]}  Ke8 {[%clk 0:01:45]} 18. Bxb7 {[%clk 0:01:32]}  Bxb7 {[%clk 0:01:46]} 19. Bxc5 {[%clk 0:01:32]}  a6 {[%clk 0:01:31]} 20. Rb1 {[%clk 0:01:28]}  Bc6 {[%clk 0:01:31]} 21. Rb6 {[%clk 0:01:27]}  Rc8 {[%clk 0:01:13]} 22. Ne2 {[%clk 0:01:16]}  Bd7 {[%clk 0:01:03]} 23. Bd6 {[%clk 0:01:07]}  Nf5 {[%clk 0:00:57]} 24. Kd2 {[%clk 0:01:02]}  Nxd6 {[%clk 0:00:56]} 25. Rxd6 {[%clk 0:01:00]}  Bb5 {[%clk 0:00:56]} 26. Nd4 {[%clk 0:00:57]}  Ke7 {[%clk 0:00:51]} 27. Rb6 {[%clk 0:00:56]}  Rc7 {[%clk 0:00:24]} 28. Rg4 {[%clk 0:00:54]}  Rhc8 {[%clk 0:00:21]} 29. Rxg7 {[%clk 0:00:52]}  Rxc3 {[%clk 0:00:19]} 30. Rh7 {[%clk 0:00:47]}  Bf1 {[%clk 0:00:06]} 31. Rxe6+ {[%clk 0:00:45]}  Kf8 {[%clk 0:00:00]} 32. Rf6 {[%clk 0:00:45]} 1-0

[Event "December 12 Late 2023"]
[Site "https://www.chess.com"]
[Date "2023.12.12"]
[Round "1"]
[White "Gutierrez Olivares, Daniel"]
[Black "Durarbayli, Vasif"]
[Result "0-1"]
[Board "28"]
[TimeControl "180+1"]
[WhiteFideId "2264005"]
[BlackFideId "13402935"]
[WhiteElo "2475"]
[BlackElo "2918"]
[WhiteTeam "ESP"]
[BlackTeam "AZE"]
[WhiteClock "0:00:00"]
[BlackClock "0:00:06"]

1. Nf3 {[%clk 0:03:00]}  d5 {[%clk 0:02:59]} 2. c4 {[%clk 0:03:00]}  c6 {[%clk 0:02:59]} 3. b3 {[%clk 0:03:00]}  Bf5 {[%clk 0:02:56]} 4. Bb2 {[%clk 0:03:00]}  e6 {[%clk 0:02:56]} 5. e3 {[%clk 0:02:58]}  Nd7 {[%clk 0:02:55]} 6. Be2 {[%clk 0:02:58]}  Ngf6 {[%clk 0:02:54]} 7. d3 {[%clk 0:02:54]}  Bb4+ {[%clk 0:02:40]} 8. Nc3 {[%clk 0:02:49]}  Nc5 {[%clk 0:02:30]} 9. Nh4 {[%clk 0:02:25]}  d4 {[%clk 0:02:20]} 10. exd4 {[%clk 0:01:19]}  Qxd4 {[%clk 0:02:18]} 11. Nf3 {[%clk 0:01:08]}  Bxc3+ {[%clk 0:02:16]} 12. Kf1 {[%clk 0:01:08]}  Bxb2 {[%clk 0:02:17]} 13. Nxd4 {[%clk 0:01:06]}  Bxd4 {[%clk 0:02:17]} 14. b4 {[%clk 0:01:04]}  Bxa1 {[%clk 0:01:44]} 15. Qxa1 {[%clk 0:01:00]}  Nxd3 {[%clk 0:01:40]} 16. g4 {[%clk 0:00:58]}  Nxg4 {[%clk 0:01:23]} 17. Bxg4 {[%clk 0:00:35]}  Bxg4 {[%clk 0:01:22]} 18. Qxg7 {[%clk 0:00:36]}  Bh3+ {[%clk 0:01:19]} 19. Ke2 {[%clk 0:00:35]}  O-O-O {[%clk 0:01:15]} 20. Rd1 {[%clk 0:00:26]}  Bf5 {[%clk 0:01:10]} 21. b5 {[%clk 0:00:16]}  c5 {[%clk 0:00:59]} 22. b6 {[%clk 0:00:11]}  axb6 {[%clk 0:00:58]} 23. Qxf7 {[%clk 0:00:10]}  Rhf8 {[%clk 0:00:57]} 24. Qg7 {[%clk 0:00:07]}  Bg6 {[%clk 0:00:45]} 25. f3 {[%clk 0:00:06]}  e5 {[%clk 0:00:37]} 26. Qh6 {[%clk 0:00:06]}  Rf4 {[%clk 0:00:32]} 27. Qg5 {[%clk 0:00:04]}  Rxc4 {[%clk 0:00:25]} 28. Kf1 {[%clk 0:00:02]}  Rf4 {[%clk 0:00:22]} 29. Kg2 {[%clk 0:00:02]}  Rfd4 {[%clk 0:00:18]} 30. Qe7 {[%clk 0:00:02]}  Nf4+ {[%clk 0:00:17]} 31. Kg3 {[%clk 0:00:02]}  Rxd1 {[%clk 0:00:18]} 32. Kh4 {[%clk 0:00:01]}  R1d7 {[%clk 0:00:18]} 33. Qxe5 {[%clk 0:00:01]}  Nd3 {[%clk 0:00:16]} 34. Qc3 {[%clk 0:00:01]}  Rd4+ {[%clk 0:00:16]} 35. Kg3 {[%clk 0:00:01]}  Rf8 {[%clk 0:00:14]} 36. Qb3 {[%clk 0:00:01]}  Kc7 {[%clk 0:00:11]} 37. Qe6 {[%clk 0:00:02]}  Rdf4 {[%clk 0:00:12]} 38. Qe7+ {[%clk 0:00:02]}  Kb8 {[%clk 0:00:12]} 39. Kg2 {[%clk 0:00:02]}  Rxf3 {[%clk 0:00:11]} 40. Qd6+ {[%clk 0:00:03]}  Ka7 {[%clk 0:00:12]} 41. h4 {[%clk 0:00:03]}  Rf2+ {[%clk 0:00:11]} 42. Kh3 {[%clk 0:00:03]}  R8f3+ {[%clk 0:00:11]} 43. Kg4 {[%clk 0:00:04]}  Bf5+ {[%clk 0:00:12]} 44. Kh5 {[%clk 0:00:03]}  Nf4+ {[%clk 0:00:12]} 45. Kh6 {[%clk 0:00:03]}  Bd3 {[%clk 0:00:09]} 46. Qd7 {[%clk 0:00:02]}  Ba6 {[%clk 0:00:07]} 47. Qa4 {[%clk 0:00:03]}  Ng6 {[%clk 0:00:07]} 48. Kxh7 {[%clk 0:00:03]}  Rf4 {[%clk 0:00:06]} 49. Qb3 {[%clk 0:00:00]}  Nxh4 {[%clk 0:00:06]} 0-1

[Event "December 12 Late 2023"]
[Site "https://www.chess.com"]
[Date "2023.12.12"]
[Round "1"]
[White "Cordova, Emilio"]
[Black "Medeiros Jr, Francisco De Assis"]
[Result "1-0"]
[Board "29"]
[TimeControl "180+1"]
[WhiteFideId "3801497"]
[BlackFideId "2114267"]
[WhiteElo "2917"]
[BlackElo "2470"]
[WhiteTeam "PER"]
[BlackTeam "BRA"]
[WhiteClock "0:00:45"]
[BlackClock "0:00:22"]

1. d4 {[%clk 0:03:00]}  d5 {[%clk 0:02:38]} 2. Nf3 {[%clk 0:03:01]}  e6 {[%clk 0:02:36]} 3. c4 {[%clk 0:03:02]}  a6 {[%clk 0:02:35]} 4. Nc3 {[%clk 0:03:03]}  dxc4 {[%clk 0:02:35]} 5. a4 {[%clk 0:03:03]}  Nc6 {[%clk 0:02:27]} 6. e3 {[%clk 0:03:03]}  Na5 {[%clk 0:02:25]} 7. Ne5 {[%clk 0:03:03]}  c5 {[%clk 0:02:24]} 8. Nxc4 {[%clk 0:02:58]}  Nf6 {[%clk 0:02:17]} 9. Nxa5 {[%clk 0:02:35]}  Qxa5 {[%clk 0:02:17]} 10. Bd2 {[%clk 0:02:36]}  cxd4 {[%clk 0:02:13]} 11. exd4 {[%clk 0:02:21]}  Bd7 {[%clk 0:02:13]} 12. Bc4 {[%clk 0:02:17]}  Bb4 {[%clk 0:02:13]} 13. O-O {[%clk 0:02:17]}  Rc8 {[%clk 0:02:10]} 14. Qe2 {[%clk 0:02:16]}  O-O {[%clk 0:02:09]} 15. Rfd1 {[%clk 0:02:09]}  Rfd8 {[%clk 0:02:08]} 16. h3 {[%clk 0:02:08]}  Bc6 {[%clk 0:02:04]} 17. Be3 {[%clk 0:01:41]}  Bxc3 {[%clk 0:01:55]} 18. bxc3 {[%clk 0:01:42]}  Qxc3 {[%clk 0:01:56]} 19. Rdc1 {[%clk 0:01:31]}  Qa5 {[%clk 0:01:48]} 20. Bd2 {[%clk 0:01:26]}  Qf5 {[%clk 0:01:42]} 21. Be3 {[%clk 0:01:03]}  Qg6 {[%clk 0:01:18]} 22. Qf1 {[%clk 0:00:57]}  Nd5 {[%clk 0:01:07]} 23. Bd2 {[%clk 0:00:56]}  Nf6 {[%clk 0:01:04]} 24. Be3 {[%clk 0:00:55]}  Qf5 {[%clk 0:00:55]} 25. Bd3 {[%clk 0:00:53]}  Be4 {[%clk 0:00:53]} 26. Be2 {[%clk 0:00:53]}  Bc6 {[%clk 0:00:52]} 27. Rc5 {[%clk 0:00:53]}  Rd5 {[%clk 0:00:49]} 28. Bd3 {[%clk 0:00:52]}  Qh5 {[%clk 0:00:49]} 29. Rac1 {[%clk 0:00:51]}  Rcd8 {[%clk 0:00:47]} 30. Bxa6 {[%clk 0:00:49]}  Rxc5 {[%clk 0:00:43]} 31. Rxc5 {[%clk 0:00:50]}  Qg6 {[%clk 0:00:40]} 32. Bd3 {[%clk 0:00:50]}  Be4 {[%clk 0:00:39]} 33. Be2 {[%clk 0:00:50]}  Nd5 {[%clk 0:00:35]} 34. Bd2 {[%clk 0:00:47]}  Nf6 {[%clk 0:00:27]} 35. Rg5 {[%clk 0:00:46]}  Qh6 {[%clk 0:00:25]} 36. Rd5 {[%clk 0:00:45]}  Qg6 {[%clk 0:00:22]} 37. Rxd8+ {[%clk 0:00:45]} 1-0

[Event "December 12 Late 2023"]
[Site "https://www.chess.com"]
[Date "2023.12.12"]
[Round "1"]
[White "yaguigor"]
[Black "Sjugirov, Sanan"]
[Result "0-1"]
[Board "30"]
[TimeControl "180+1"]
[BlackFideId "4189302"]
[WhiteElo "2470"]
[BlackElo "2916"]
[BlackTeam "HUN"]
[WhiteClock "0:00:00"]
[BlackClock "0:00:04"]

1. e4 {[%clk 0:02:56]}  c5 {[%clk 0:02:59]} 2. Nf3 {[%clk 0:02:53]}  d6 {[%clk 0:02:59]} 3. d4 {[%clk 0:02:41]}  cxd4 {[%clk 0:02:59]} 4. Nxd4 {[%clk 0:02:41]}  Nf6 {[%clk 0:03:00]} 5. Nc3 {[%clk 0:02:41]}  a6 {[%clk 0:03:00]} 6. f3 {[%clk 0:02:40]}  e5 {[%clk 0:03:00]} 7. Nb3 {[%clk 0:02:39]}  Be6 {[%clk 0:03:00]} 8. Be3 {[%clk 0:02:39]}  Be7 {[%clk 0:02:55]} 9. Qd2 {[%clk 0:02:39]}  O-O {[%clk 0:02:55]} 10. O-O-O {[%clk 0:02:39]}  Nbd7 {[%clk 0:02:53]} 11. g4 {[%clk 0:02:39]}  b5 {[%clk 0:02:54]} 12. g5 {[%clk 0:02:39]}  Nh5 {[%clk 0:02:51]} 13. Kb1 {[%clk 0:02:38]}  Nb6 {[%clk 0:02:44]} 14. Na5 {[%clk 0:02:36]}  Rc8 {[%clk 0:02:31]} 15. Nd5 {[%clk 0:02:31]}  Nxd5 {[%clk 0:02:28]} 16. exd5 {[%clk 0:02:31]}  Bxd5 {[%clk 0:02:18]} 17. Qxd5 {[%clk 0:02:31]}  Qxa5 {[%clk 0:02:19]} 18. c4 {[%clk 0:02:20]}  Nf4 {[%clk 0:01:55]} 19. Bxf4 {[%clk 0:02:14]}  exf4 {[%clk 0:01:56]} 20. cxb5 {[%clk 0:01:36]}  axb5 {[%clk 0:01:56]} 21. Bd3 {[%clk 0:01:12]}  g6 {[%clk 0:01:55]} 22. h4 {[%clk 0:01:02]}  Rc5 {[%clk 0:01:54]} 23. Qb7 {[%clk 0:01:00]}  Ra8 {[%clk 0:01:49]} 24. a3 {[%clk 0:00:58]}  Bf8 {[%clk 0:01:36]} 25. Rhe1 {[%clk 0:00:35]}  Qd8 {[%clk 0:01:12]} 26. Qe4 {[%clk 0:00:31]}  Bg7 {[%clk 0:00:13]} 27. Qxf4 {[%clk 0:00:28]}  Rb8 {[%clk 0:00:07]} 28. Re4 {[%clk 0:00:27]}  d5 {[%clk 0:00:05]} 29. Rb4 {[%clk 0:00:25]}  Qd7 {[%clk 0:00:05]} 30. Re1 {[%clk 0:00:22]}  Rbc8 {[%clk 0:00:05]} 31. Qe3 {[%clk 0:00:20]}  Bf8 {[%clk 0:00:05]} 32. Rb3 {[%clk 0:00:17]}  Qh3 {[%clk 0:00:04]} 33. Qf4 {[%clk 0:00:14]}  Qg2 {[%clk 0:00:04]} 34. Rd1 {[%clk 0:00:12]}  Qf2 {[%clk 0:00:03]} 35. h5 {[%clk 0:00:09]}  Bg7 {[%clk 0:00:04]} 36. hxg6 {[%clk 0:00:07]}  hxg6 {[%clk 0:00:05]} 37. Rb4 {[%clk 0:00:00]}  Rc2 {[%clk 0:00:04]} 0-1

[Event "December 12 Late 2023"]
[Site "https://www.chess.com"]
[Date "2023.12.12"]
[Round "1"]
[White "Chigaev, Maksim"]
[Black "Bogaudinov, Rushan"]
[Result "1-0"]
[Board "31"]
[TimeControl "180+1"]
[WhiteFideId "4108116"]
[BlackFideId "4129288"]
[WhiteElo "2911"]
[BlackElo "2469"]
[WhiteTeam "ESP"]
[BlackTeam "RUS"]
[WhiteClock "0:00:15"]
[BlackClock "0:00:00"]

1. d4 {[%clk 0:03:00]}  Nf6 {[%clk 0:02:59]} 2. c4 {[%clk 0:03:00]}  e6 {[%clk 0:02:58]} 3. g4 {[%clk 0:02:59]}  d5 {[%clk 0:02:56]} 4. g5 {[%clk 0:02:58]}  Ne4 {[%clk 0:02:47]} 5. Bg2 {[%clk 0:02:58]}  Bb4+ {[%clk 0:02:42]} 6. Kf1 {[%clk 0:02:54]}  Nc6 {[%clk 0:02:33]} 7. c5 {[%clk 0:02:33]}  Nxg5 {[%clk 0:01:54]} 8. a3 {[%clk 0:02:29]}  Ba5 {[%clk 0:01:47]} 9. b4 {[%clk 0:02:28]}  O-O {[%clk 0:01:30]} 10. bxa5 {[%clk 0:02:27]}  Ne4 {[%clk 0:01:24]} 11. Nf3 {[%clk 0:02:18]}  f5 {[%clk 0:01:22]} 12. h4 {[%clk 0:02:16]}  Nxa5 {[%clk 0:01:19]} 13. Bf4 {[%clk 0:02:13]}  b6 {[%clk 0:01:12]} 14. Nbd2 {[%clk 0:02:07]}  Ba6 {[%clk 0:01:11]} 15. Rc1 {[%clk 0:02:03]}  Qd7 {[%clk 0:01:02]} 16. Ne5 {[%clk 0:02:01]}  Qb5 {[%clk 0:01:02]} 17. c6 {[%clk 0:01:34]}  Nxd2+ {[%clk 0:00:53]} 18. Bxd2 {[%clk 0:01:31]}  Nb3 {[%clk 0:00:50]} 19. Bf4 {[%clk 0:01:06]}  Nxc1 {[%clk 0:00:41]} 20. Bxc1 {[%clk 0:01:07]}  Qb1 {[%clk 0:00:29]} 21. f3 {[%clk 0:00:56]}  f4 {[%clk 0:00:20]} 22. Kf2 {[%clk 0:00:55]}  Qa1 {[%clk 0:00:18]} 23. Qd2 {[%clk 0:00:50]}  Rae8 {[%clk 0:00:15]} 24. Bb2 {[%clk 0:00:45]}  Qa2 {[%clk 0:00:15]} 25. Qc3 {[%clk 0:00:45]}  Bc4 {[%clk 0:00:14]} 26. Ra1 {[%clk 0:00:33]}  Qb3 {[%clk 0:00:14]} 27. Nxc4 {[%clk 0:00:31]}  dxc4 {[%clk 0:00:11]} 28. Qxb3 {[%clk 0:00:31]}  cxb3 {[%clk 0:00:12]} 29. a4 {[%clk 0:00:32]}  Rd8 {[%clk 0:00:11]} 30. Bh3 {[%clk 0:00:25]}  Rfe8 {[%clk 0:00:10]} 31. Ra3 {[%clk 0:00:23]}  Rd6 {[%clk 0:00:10]} 32. Rxb3 {[%clk 0:00:24]}  Rxc6 {[%clk 0:00:10]} 33. a5 {[%clk 0:00:19]}  Rc4 {[%clk 0:00:08]} 34. axb6 {[%clk 0:00:18]}  cxb6 {[%clk 0:00:09]} 35. Rb5 {[%clk 0:00:18]}  Kf7 {[%clk 0:00:08]} 36. Re5 {[%clk 0:00:17]}  Rb4 {[%clk 0:00:06]} 37. Bc3 {[%clk 0:00:16]}  Rc4 {[%clk 0:00:07]} 38. Bb2 {[%clk 0:00:15]}  Rb4 {[%clk 0:00:07]} 39. Ba1 {[%clk 0:00:13]}  Ra4 {[%clk 0:00:07]} 40. Bc3 {[%clk 0:00:14]}  Rc4 {[%clk 0:00:07]} 41. Be1 {[%clk 0:00:14]}  Rxd4 {[%clk 0:00:07]} 42. h5 {[%clk 0:00:15]}  Rd5 {[%clk 0:00:06]} 43. Re4 {[%clk 0:00:15]}  Rxh5 {[%clk 0:00:05]} 44. Rxf4+ {[%clk 0:00:15]}  Kg8 {[%clk 0:00:00]} 45. Bg4 {[%clk 0:00:15]} 1-0

[Event "December 12 Late 2023"]
[Site "https://www.chess.com"]
[Date "2023.12.12"]
[Round "1"]
[White "Serban, Cristian-Stefan"]
[Black "Rasulov, Vugar"]
[Result "0-1"]
[Board "32"]
[TimeControl "180+1"]
[WhiteFideId "1241443"]
[BlackFideId "13402390"]
[WhiteElo "2468"]
[BlackElo "2901"]
[WhiteTeam "ROU"]
[BlackTeam "AZE"]
[WhiteClock "0:00:02"]
[BlackClock "0:00:32"]

1. d4 {[%clk 0:03:00]}  d5 {[%clk 0:02:59]} 2. c4 {[%clk 0:03:01]}  e6 {[%clk 0:02:59]} 3. Nf3 {[%clk 0:03:01]}  c6 {[%clk 0:02:58]} 4. e3 {[%clk 0:02:57]}  Nf6 {[%clk 0:02:57]} 5. Bd3 {[%clk 0:02:55]}  dxc4 {[%clk 0:02:54]} 6. Bxc4 {[%clk 0:02:55]}  b5 {[%clk 0:02:55]} 7. Be2 {[%clk 0:02:51]}  Bb7 {[%clk 0:02:54]} 8. O-O {[%clk 0:02:51]}  Be7 {[%clk 0:02:53]} 9. Qc2 {[%clk 0:02:49]}  O-O {[%clk 0:02:39]} 10. Rd1 {[%clk 0:02:49]}  Qb6 {[%clk 0:02:35]} 11. Nc3 {[%clk 0:02:48]}  a6 {[%clk 0:02:33]} 12. e4 {[%clk 0:02:45]}  c5 {[%clk 0:02:32]} 13. h3 {[%clk 0:02:24]}  Nc6 {[%clk 0:02:29]} 14. Be3 {[%clk 0:02:20]}  Nb4 {[%clk 0:02:24]} 15. Qb1 {[%clk 0:02:15]}  cxd4 {[%clk 0:02:12]} 16. Bxd4 {[%clk 0:02:08]}  Bc5 {[%clk 0:02:12]} 17. a3 {[%clk 0:02:06]}  Bxd4 {[%clk 0:02:02]} 18. Nxd4 {[%clk 0:02:04]}  Nc6 {[%clk 0:02:00]} 19. Nxc6 {[%clk 0:01:58]}  Bxc6 {[%clk 0:02:01]} 20. Bd3 {[%clk 0:01:46]}  h6 {[%clk 0:01:58]} 21. Qc2 {[%clk 0:01:46]}  Rac8 {[%clk 0:01:56]} 22. Qe2 {[%clk 0:01:46]}  e5 {[%clk 0:01:54]} 23. Rac1 {[%clk 0:01:33]}  Rfd8 {[%clk 0:01:53]} 24. Bb1 {[%clk 0:01:30]}  Bb7 {[%clk 0:01:50]} 25. Ba2 {[%clk 0:01:08]}  Rd4 {[%clk 0:01:45]} 26. Nd5 {[%clk 0:00:42]}  Rxc1 {[%clk 0:01:37]} 27. Rxc1 {[%clk 0:00:40]}  Nxd5 {[%clk 0:01:27]} 28. Bxd5 {[%clk 0:00:40]}  Bxd5 {[%clk 0:01:24]} 29. exd5 {[%clk 0:00:41]}  Qd6 {[%clk 0:01:10]} 30. Rc8+ {[%clk 0:00:18]}  Kh7 {[%clk 0:01:10]} 31. Qc2+ {[%clk 0:00:18]}  Qg6 {[%clk 0:01:04]} 32. Qxg6+ {[%clk 0:00:17]}  Kxg6 {[%clk 0:01:05]} 33. Rc6+ {[%clk 0:00:17]}  f6 {[%clk 0:01:06]} 34. Rxa6 {[%clk 0:00:17]}  Rxd5 {[%clk 0:01:05]} 35. Rb6 {[%clk 0:00:18]}  Kf5 {[%clk 0:01:03]} 36. Kh2 {[%clk 0:00:18]}  h5 {[%clk 0:01:02]} 37. Kg3 {[%clk 0:00:16]}  Rd3+ {[%clk 0:01:02]} 38. f3 {[%clk 0:00:16]}  Rb3 {[%clk 0:01:02]} 39. Kh4 {[%clk 0:00:12]}  Rxb2 {[%clk 0:00:56]} 40. g4+ {[%clk 0:00:06]}  hxg4 {[%clk 0:00:57]} 41. fxg4+ {[%clk 0:00:07]}  Kf4 {[%clk 0:00:51]} 42. Kh5 {[%clk 0:00:07]}  e4 {[%clk 0:00:49]} 43. Kg6 {[%clk 0:00:05]}  Rb3 {[%clk 0:00:41]} 44. h4 {[%clk 0:00:02]}  Rg3 {[%clk 0:00:36]} 45. g5 {[%clk 0:00:02]}  fxg5 {[%clk 0:00:33]} 46. h5 {[%clk 0:00:02]}  Rh3 {[%clk 0:00:33]} 47. Rxb5 {[%clk 0:00:02]}  e3 {[%clk 0:00:34]} 48. Rf5+ {[%clk 0:00:03]}  Ke4 {[%clk 0:00:34]} 49. Rf7 {[%clk 0:00:02]}  g4 {[%clk 0:00:33]} 50. Rxg7 {[%clk 0:00:01]}  g3 {[%clk 0:00:33]} 51. Re7+ {[%clk 0:00:02]}  Kf3 {[%clk 0:00:33]} 52. Kf5 {[%clk 0:00:02]}  g2 {[%clk 0:00:32]} 53. Kg5 {[%clk 0:00:02]} 0-1